{"text_format":"1","workbook":"xlsx","n_sheets":1,"sheets":["TARAKIB"],"not_rendered":{"charts":0,"images":0,"macros":1,"external_links":0,"defined_names":7,"comments":0,"pivot_tables":0},"unopened":[],"bounds":{"document_bytes":16777216,"sheet_cells":100000,"rows_first":2000,"rows_last":500,"rows_between":2000,"halvings":0,"cell_chars":16384,"cell_head_chars":4096},"cells_cut":0,"cells_raw":0,"read":"whole","date_system":"1900"}

{"sheet":"TARAKIB","index":0,"n_rows":50,"n_cols":108,"rows_kept":50,"cut":false,"hidden":false,"merged":[[8,23,8,26],[8,28,8,31],[8,33,8,36],[8,38,8,41],[48,20,48,21],[1,14,1,20],[2,14,2,19],[0,0,0,1],[1,0,1,1],[52,16,52,19],[49,20,49,21],[48,17,48,19],[49,17,49,19],[5,20,7,20],[6,18,7,19],[6,17,7,17],[7,24,7,25],[5,1,5,16],[6,1,6,4],[6,5,6,8],[6,9,6,12],[6,13,6,16]]}
["الأستاذة: ",null,null,null,null,null,null,null,null,null,null,null,null,null,null,null,null,null,null,null,null,null,null,null,null,null,null,null,null,null,null,null,null,null,null,null,null,null,null,null,null,null,null,null,null,null,null,null,null,null,null,null,null,null,null,null,null,null,null,null,null,null,null,null,null,null,null,null,null,null,null,null,null,null,null,null,null,null,null,null,null,null,null,null,null,null,null,null,null,null,null,null,null,null,null,null,null,null,null,null,null,null,null,null,null,null,null,"x"]
["السنة الدراسية: 2018.2019"]
[]
[]
[null,null,null,null,null,null,null,null,null,null,null,null,null,1]
["ملاحظات","التراكيب",null,null,null,null,null,null,null,null,null,null,null,null,null,null,null,null,"المواد","     ","رت"]
[null,"المستثنى بالا",null,null,null,"التمييز",null,null,null,"جمع المذكر و المؤنث السالمين",null,null,null,"الحال",null,null,null,"النقطة","اسماء التلاميذ"]
[null,0,1,2,3,0,1,2,3,0,1,2,3,0,1,2,3]
[null,null,null,null,"x",null,null,null,"x",null,null,"x",null,null,null,null,"x",null,null,"الاسم 1",1,null,null,"3 =التراكيب متمكن ",null,null,null,null,"2 = التراكيب  متمكن نسبيا",null,null,null,null,"1 = التراكيب،في طور التمكن",null,null,null,null,"0 = التراكيب، غير متمكن   "]
[null,"x",null,null,null,"x",null,null,null,"x",null,null,null,null,null,null,"x",null,null,"الاسم 2",2,null,null,"المستثنى","التمييز","ج المذكر و المؤنث السالمين","الحال",null,"المستثنى","التمييز","ج المذكر و المؤنث السالمين","الحال",null,"المستثنى","التمييز","ج المذكر و المؤنث السالمين","الحال",null,"المستثنى","التمييز","ج المذكر و المؤنث السالمين","الحال"]
[null,"x",null,null,null,"x",null,null,null,"x",null,null,null,null,null,"X",null,null,null,"الاسم 3",3,null,null,"الاسم 1","الاسم 1","","الاسم 1",null,"","","الاسم 1","",null,"","","","",null,"","","",""]
[null,"x",null,null,null,"x",null,null,null,"x",null,null,null,"x",null,null,null,null,null,"الاسم 4",4,null,null,"","","الاسم 6","الاسم 2",null,"الاسم 8","الاسم 5","","الاسم 3",null,null,"الاسم 9","الاسم 8","الاسم 8",null,"الاسم 2","الاسم 2","الاسم 2","الاسم 4"]
[null,null,null,null,"x",null,null,"x",null,null,null,"x",null,null,null,"x",null,null,null,"الاسم 5",5,null,null,"الاسم 5","الاسم 6","الاسم 7","",null,"الاسم 12","الاسم 8","الاسم 5","الاسم 5",null,null,"الاسم 12","الاسم 12","الاسم 12",null,"الاسم 3","الاسم 3","الاسم 3","الاسم 9"]
[null,null,null,null,"x",null,null,null,"x",null,null,null,"x",null,null,null,"x",null,null,"الاسم 6",6,null,null,"الاسم 6","الاسم 7","الاسم 10","الاسم 6",null,"الاسم 14","الاسم 11","الاسم 23","الاسم 7",null,null,"الاسم 15","الاسم 13","الاسم 14",null,"الاسم 4","الاسم 4","الاسم 4","الاسم 17"]
[null,null,null,null,"x",null,null,null,"x",null,null,null,"x",null,null,"x",null,null,null,"الاسم 7",7,null,null,"الاسم 7","الاسم 10","الاسم 11","الاسم 10",null,"الاسم 30","الاسم 16","الاسم 25","الاسم 24",null,null,"الاسم 20","الاسم 16","الاسم 16",null,"الاسم 9","الاسم 17","الاسم 9","الاسم 29"]
[null,null,null,"x",null,null,null,"x",null,null,"x",null,null,null,"x",null,null,null,null,"الاسم 8",8,null," ","الاسم 10","الاسم 13","الاسم 15","الاسم 11",null,null,"الاسم 19","الاسم 27","الاسم 25",null,null,"الاسم 22","الاسم 18","الاسم 18",null,"الاسم 17","الاسم 29","الاسم 14","الاسم 31"]
[null,"x",null,null,null,null,"x",null,null,"x",null,null,null,"x",null,null,null,null,null,"الاسم 9",9,null,null,"الاسم 11","الاسم 14","الاسم 21","الاسم 13",null,null,"الاسم 24","الاسم 28","الاسم 30",null,null,"الاسم 23","الاسم 19","الاسم 20",null,"الاسم 20","الاسم 30","الاسم 17","الاسم 34"]
[null,null,null,null,"x",null,null,null,"x",null,null,null,"x",null,null,null,"x",null,null,"الاسم 10",10,null,null,"الاسم 13","الاسم 18","الاسم 24","الاسم 15",null,null,"الاسم 26","الاسم 32","الاسم 33",null,null,"الاسم 25","الاسم 22","الاسم 22",null,"الاسم 29","الاسم 31","الاسم 20"]
[null,null,null,null,"x",null,null,"x",null,null,null,null,"x",null,null,null,"x",null,null,"الاسم 11",11,null,null,"الاسم 15","الاسم 21","الاسم 33","الاسم 19",null,null,"الاسم 37","الاسم 35",null,null,null,"الاسم 27","الاسم 26","الاسم 26",null,"الاسم 31","الاسم 34","الاسم 29"]
[null,null,null,"x",null,null,"x",null,null,null,"x",null,null,null,"x",null,null,null,null,"الاسم 12",12,null,null,"الاسم 16","الاسم 32","الاسم 36","الاسم 21",null,null,null,"الاسم 37",null,null,null,"الاسم 28","الاسم 30","الاسم 32",null,"الاسم 34",null,"الاسم 31"]
[null,null,null,null,"x",null,null,null,"x",null,"x",null,null,null,null,null,"x",null,null,"الاسم 13",13,null,null,"الاسم 18","الاسم 33",null,"الاسم 23",null,null,null,null,null,null,null,null,null,"الاسم 35",null,null,null,"الاسم 34"]
[null,null,null,"x",null,null,null,null,"x","x",null,null,null,null,"x",null,null,null,null,"الاسم 14",14,null,null,"الاسم 19","الاسم 35",null,"الاسم 27",null,null,null,null,null,null,null,null,null,"الاسم 36"]
[null,null,null,null,"x",null,"x",null,null,null,null,null,"x",null,null,null,"x",null,null,"الاسم 15",15,null,null,"الاسم 21","الاسم 36",null,"الاسم 28"]
[null,null,null,null,"x",null,null,"x",null,null,"x",null,null,null,"x",null,null,null,null,"الاسم 16",16,null,null,"الاسم 22",null,null,"الاسم 37"]
[null,"x",null,null,null,"x",null,null,null,"x",null,null,null,"x",null,null,null,null,null,"الاسم 17",17,null,null,"الاسم 23"]
[null,null,null,null,"x",null,null,null,"x",null,"x",null,null,null,"x",null,null,null,null,"الاسم 18",18,null,null,"الاسم 24"]
[null,null,null,null,"x",null,null,"x",null,null,"x",null,null,null,null,null,"x",null,null,"الاسم 19",19,null,null,"الاسم 25"]
[null,"x",null,null,null,null,"x",null,null,"x",null,null,null,null,"x",null,null,null,null,"الاسم 20",20,null,null,"الاسم 26"]
[null,null,null,null,"x",null,null,null,"x",null,null,null,"x",null,null,null,"x",null,null,"الاسم 21",21,null,null,"الاسم 27"]
[null,null,null,null,"x",null,"x",null,null,null,"x",null,null,null,"x",null,null,null,null,"الاسم 22",22,null,null,"الاسم 28"]
[null,null,null,null,"x",null,"x",null,null,null,null,"x",null,null,null,null,"x",null,null,"الاسم 23",23,null,null,"الاسم 32"]
[null,null,null,null,"x",null,null,"x",null,null,null,null,"x",null,null,"x",null,null,null,"الاسم 24",24,null,null,"الاسم 33"]
[null,null,null,null,"x",null,"x",null,null,null,null,"x",null,null,null,"x",null,null,null,"الاسم 25",25,null,null,"الاسم 35"]
[null,null,null,null,"x",null,null,"x",null,null,"x",null,null,null,"x",null,null,null,null,"الاسم 26",26,null,null,"الاسم 36"]
[null,null,null,null,"x",null,"x",null,null,null,null,"x",null,null,null,null,"x",null,null,"الاسم 27",27,null,null,"الاسم 37"]
[null,null,null,null,"x",null,"x",null,null,null,null,"x",null,null,null,null,"x",null,null,"الاسم 28",28]
[null,"x",null,null,null,"x",null,null,null,"x",null,null,null,"x",null,null,null,null,null,"الاسم 29",29]
[null,null,null,"x",null,"x",null,null,null,null,"x",null,null,null,null,"x","w",null,null,"الاسم 30",30]
[null,"x",null,null,null,"x",null,null,null,"x",null,null,null,"x",null,null,"لا",null,null,"الاسم 31",31]
[null,null,null,null,"x",null,null,null,"x",null,null,"x",null,null,"x",null,null,null,null,"الاسم 32",32]
[null,null,null,null,"x",null,null,null,"x",null,null,null,"X",null,null,"X","ى1",null,null,"الاسم 33",33]
[null,"x",null,null,null,"x",null,null,null,"x",null,null,null,"x",null,null,null,null,null,"الاسم 34",34]
[null,null,null,null,"x",null,null,null,"x",null,null,"x",null,null,"x",null,null,null,null,"الاسم 35",35]
[null,null,null,null,"x",null,null,null,"x",null,null,null,"x",null,"x",null,null,null,null,"الاسم 36",36]
[null,null,null,null,"x",null,null,"x",null,null,null,"x",null,null,null,null,"x",null,null,"الاسم 37",{"$f":"IF(T45=\"\",\"\",MAX($U$8:U44)+1)","v":37}]
[null,null,null,null,null,null,null,null,null,null,null,null,null,null,null,null,null,null,null,null,{"$f":"IF(T46=\"\",\"\",MAX($U$8:U45)+1)","v":""}]
[null,null,null,null,null,null,null,null,null,null,null,null,null,null,null,null,null,null,null,null,{"$f":"IF(T47=\"\",\"\",MAX($U$8:U46)+1)","v":""}]
[null,null,null,null,null,null,null,null,null,null,null,null,null,null,null,null,null,null,null,null,{"$f":"IF(T48=\"\",\"\",MAX($U$8:U47)+1)","v":""}]
[null,{"$f":"COUNTIF(B9:B45,\"x\")","v":9},0,4,24,8,9,8,12,10,9,9,9,6,11,7,13,{"$f":"COUNTA(T9:T45)","v":37},null,null,"المجموع"]
[null,{"$f":"(B49/$R$49)","v":0.24324324324324326},0,0.10810810810810811,0.64864864864864868,0.21621621621621623,0.24324324324324326,0.21621621621621623,0.32432432432432434,0.27027027027027029,0.24324324324324326,0.24324324324324326,0.24324324324324326,0.16216216216216217,0.29729729729729731,0.1891891891891892,0.35135135135135137,null,null,null,"النسبة المئوية"]